bitfinex/quotes_ETHUSD_20251111
["timestamp","ask_amount","ask_price","bid_price","bid_amount"]
[1762897839952,0.4933,3414.7,3414.0,0.6689]
[1762897840287,0.99298712,3415.1,3413.8,2.92922232]
[1762897840288,0.4933,3414.1,3413.8,2.92922232]
[1762897840487,0.4933,3414.0,3413.8,2.92923185]
[1762897840781,0.4933,3414.2,3414.0,2.92910533]
[1762897840981,0.4933,3414.2,3414.1,2.92902961]
[1762897841150,0.76220977,3414.2,3413.9,1.1805]
[1762897841484,0.4933,3414.0,3413.9,3.63919466]
[1762897841684,0.4933,3414.1,3414.0,2.92903931]
[1762897842186,0.4933,3414.3,3414.0,0.9447]
[1762897842484,0.26883093,3414.2,3414.0,0.9447]
[1762897842654,0.26883093,3414.2,3414.0,3.39956555]
[1762897843396,0.26883093,3414.2,3414.0,0.4705]
[1762897843681,0.4933,3414.3,3414.1,2.92902961]
[1762897843892,0.4559,3415.5,3414.3,0.405504]
[1762897844054,0.7749859,3415.8,3414.4,2.92872219]
[1762897844055,0.4933,3414.7,3414.4,2.92872219]
[1762897844254,0.26877289,3414.6,3414.5,2.92868648]
[1762897844556,0.26877289,3414.6,3414.5,0.69711343]
[1762897844760,0.4933,3414.7,3414.6,2.92860071]
[1762897845181,0.4933,3414.7,3414.5,4.33376869]
[1762897845361,0.4933,3414.7,3414.5,1.8417408]
[1762897845561,0.4933,3414.7,3414.6,1.1337408]
[1762897846076,0.4933,3414.7,3414.5,0.708]
[1762897846468,0.4933,3414.7,3414.6,4.06234151]
[1762897846777,0.4933,3414.7,3414.6,1.1337408]
[1762897847757,0.4933,3414.7,3414.6,4.9337408]
[1762897848283,0.4933,3414.7,3414.6,7.86234151]
[1762897848472,0.4933,3414.7,3414.6,4.06234151]
[1762897848672,0.4933,3414.9,3414.6,4.53282884]
[1762897849184,0.4933,3414.9,3414.6,1.1337408]
[1762897849388,0.4933,3414.9,3414.5,3.63665638]
[1762897849770,0.4933,3414.6,3414.5,4.46790118]
[1762897850097,0.4933,3414.5,3414.3,1.5392448]
[1762897850252,0.4933,3414.5,3414.3,0.405504]
[1762897850454,0.4933,3414.3,3414.2,3.8]
[1762897850871,1.3043,3414.3,3414.2,3.8]
[1762897851602,0.4933,3414.3,3414.2,6.72894382]
[1762897852319,0.4933,3414.2,3414.1,2.92899232]
[1762897852895,0.8504,3414.2,3413.9,0.001]
[1762897853100,0.4933,3414.1,3413.9,4.06386791]
[1762897854221,0.4933,3414.1,3413.9,0.001]
[1762897854595,0.4933,3414.1,3413.9,2.93013792]
[1762897855794,2.06725549,3414.0,3413.9,0.001]
[1762897856120,1.84354521,3414.0,3413.9,0.001]
[1762897856722,2.33636729,3414.0,3413.9,0.001]
[1762897858593,1.84354521,3414.0,3413.9,0.001]
[1762897862644,1.84214521,3414.0,3413.9,0.001]
[1762897863212,2.33496729,3414.0,3413.9,0.001]
[1762897865918,2.33496729,3414.0,3413.9,3.9204012]
[1762897865919,0.53804521,3414.0,3413.9,3.9204012]
[1762897866306,0.53804521,3414.0,3413.9,0.499]
[1762897866531,0.53804521,3414.0,3413.9,0.001]
[1762897866763,0.53804521,3414.0,3413.9,3.4282012]
[1762897866917,0.53804521,3414.0,3413.9,4.62607754]
[1762897867247,0.53804521,3414.0,3413.9,1.74587634]
[1762897867448,0.53804521,3414.0,3413.9,4.67507754]
[1762897867615,0.53804521,3414.0,3413.9,0.9902]
[1762897867817,1.03134521,3414.0,3413.9,0.498]
[1762897868021,1.35694521,3414.0,3413.5,0.001]
[1762897868322,0.4933,3413.6,3413.5,0.001]
[1762897868630,0.76223341,3413.6,3413.5,0.001]
[1762897868831,1.03179739,3413.6,3413.5,3.42854445]
[1762897869732,1.03179739,3413.6,3413.5,0.499]
[1762897870056,1.03179739,3413.6,3413.5,0.001]
[1762897870416,1.03179739,3413.6,3413.5,2.93054445]
[1762897870764,1.03179739,3413.6,3413.5,3.42854445]
[1762897871459,1.03297278,3413.6,3413.5,3.42854445]
[1762897871623,1.03297278,3413.6,3413.5,0.499]
[1762897872156,1.03297278,3413.6,3413.5,0.001]
[1762897872340,1.35977278,3413.6,3413.5,0.001]
[1762897873922,1.03297278,3413.6,3413.5,3.42854445]
[1762897874153,0.53967278,3413.6,3413.5,4.299]
[1762897874351,0.53967278,3413.6,3413.5,3.801]
[1762897874352,1.35977278,3413.6,3413.5,3.801]
[1762897874656,1.84487278,3413.6,3413.5,3.801]
[1762897874950,1.84487278,3413.6,3413.5,0.001]
[1762897875155,1.35977278,3413.6,3413.5,0.001]
[1762897876752,1.84487278,3413.6,3413.5,0.001]
[1762897877353,1.84486352,3413.6,3413.5,0.001]
[1762897878554,1.03296352,3413.6,3413.5,0.001]
[1762897878757,1.84496352,3413.6,3413.5,0.001]
[1762897879257,1.36136352,3413.6,3413.5,0.001]
[1762897879826,1.03296352,3413.6,3413.5,0.001]
[1762897880027,1.03296352,3413.6,3413.5,0.499]
[1762897880226,1.36286352,3413.6,3413.5,0.001]
[1762897881164,1.84486352,3413.6,3413.5,0.001]
[1762897881577,1.03296352,3413.6,3413.5,0.001]
[1762897881983,1.35976352,3413.6,3413.5,0.001]
[1762897882638,1.84486352,3413.6,3413.5,0.001]
[1762897884769,1.03296352,3413.6,3413.5,0.001]
[1762897885570,1.03296352,3413.6,3413.5,0.499]
[1762897887171,1.03296352,3413.6,3413.5,0.001]
[1762897887764,1.03296352,3413.6,3413.5,0.4972]
[1762897888571,1.03296352,3413.6,3413.5,0.001]
[1762897888757,1.03296352,3413.6,3413.5,3.801]
[1762897888967,1.03296352,3413.6,3413.5,4.2972]
[1762897889553,1.03296352,3413.6,3413.5,4.7886]
[1762897890373,1.34926352,3413.6,3412.3,0.1881]
[1762897890550,0.4933,3413.3,3412.4,0.52070488]
[1762897890750,0.53966352,3413.2,3412.6,2.93031706]
[1762897891045,0.53966352,3413.2,3412.3,0.8971]
[1762897891046,0.4933,3412.6,3412.3,0.8971]
[1762897891246,0.4933,3412.6,3412.3,4.31902396]
[1762897891247,0.53966352,3412.5,3412.3,4.31902396]
[1762897891446,0.4933,3412.6,3412.5,0.4962]
[1762897891673,1.03325686,3412.6,3412.5,0.4962]
[1762897891975,1.03325686,3412.6,3412.5,0.3462]
[1762897893692,0.53995686,3412.6,3412.3,0.1881]
[1762897893863,0.53995686,3412.5,3412.4,0.4914]
[1762897894058,0.53995686,3412.5,3412.4,3.4218888]
[1762897894247,0.53995686,3412.5,3412.4,4.64304628]
[1762897894691,0.53995686,3412.5,3412.4,3.4266888]
[1762897895060,0.53995686,3412.5,3412.4,0.4962]
[1762897895245,0.53995686,3412.5,3412.2,2.93061202]
[1762897895446,1.03325686,3412.4,3412.2,2.93061202]
[1762897895690,0.4933,3412.4,3412.2,2.93061202]
[1762897895979,0.26971704,3412.3,3412.2,3.42201202]
[1762897896184,0.26971704,3412.3,3412.2,2.93061202]
[1762897896391,0.26971704,3412.3,3412.1,0.9084]
[1762897896680,0.4933,3412.4,3412.2,0.4962]
[1762897896879,0.26965189,3412.3,3412.1,4.33051198]
[1762897897050,0.4933,3412.4,3412.3,0.4962]
[1762897897251,1.0325994,3412.4,3412.3,0.4962]
[1762897897481,1.0325994,3412.4,3412.1,0.9084]
[1762897897648,0.5392994,3412.3,3412.1,0.9084]
[1762897897850,0.2696497,3412.2,3412.1,4.33050587]
[1762897898345,0.2696497,3412.2,3412.1,4.82670587]
[1762897898971,0.2696497,3412.2,3412.1,4.33530587]
[1762897899169,0.4933,3412.4,3412.1,4.33630587]
[1762897899377,0.53922826,3412.3,3412.1,1.4056]
[1762897899575,0.4933,3412.4,3412.1,4.33628654]
[1762897899749,0.53922936,3412.3,3412.1,4.33628654]
[1762897899965,0.4933,3412.4,3412.3,0.4962]
[1762897900161,0.53923038,3412.4,3412.3,3.42677468]
[1762897900362,0.53923038,3412.4,3412.3,3.91817468]
[1762897900769,0.53923038,3412.4,3412.3,4.73399802]
[1762897901867,0.4933,3413.2,3413.0,2.92994261]
[1762897902071,0.5393057,3413.1,3413.0,2.92994261]
[1762897902388,0.5393057,3413.1,3413.0,3.42134261]
[1762897902552,0.5393057,3413.1,3413.0,3.94684234]
[1762897902758,0.4933,3413.8,3413.0,6.12593909]
[1762897902958,0.53950218,3413.7,3413.1,1.3978]
[1762897903178,1.03280218,3413.6,3413.4,2.92957394]
[1762897903379,0.53950218,3413.5,3413.3,0.707]
[1762897903578,0.53950218,3413.4,3413.3,3.63771611]
[1762897903984,0.53950218,3413.4,3413.3,4.13391611]
[1762897904381,0.53950218,3413.4,3413.3,4.62531611]
[1762897904580,0.002,3413.9,3413.7,2.92929829]
[1762897904780,0.53952358,3413.8,3413.6,0.708]
[1762897904979,1.03282358,3413.7,3413.6,0.708]
[1762897905303,1.03282358,3413.7,3413.5,0.708]
[1762897905304,1.48362358,3413.7,3413.5,0.708]
[1762897905609,1.48362358,3413.7,3413.4,3.63762332]
[1762897905610,0.53952358,3413.6,3413.4,3.63762332]
[1762897905816,0.53952358,3413.5,3413.4,3.63762332]
[1762897906020,0.53952358,3413.5,3413.1,2.92983886]
[1762897906232,0.4933,3413.6,3413.4,0.709]
[1762897906362,0.5394777,3413.5,3413.4,0.709]
[1762897906873,0.5394777,3413.5,3413.4,4.13483028]
[1762897907191,0.5394777,3413.5,3413.4,4.62623028]
[1762897907412,0.26973885,3413.5,3413.4,4.62623028]
[1762897907619,0.002,3413.9,3413.4,4.62623028]
[1762897907620,0.002,3413.9,3413.7,2.92933097]
[1762897907763,0.53947068,3413.8,3413.7,3.63833097]
[1762897907962,0.53947068,3413.8,3413.7,3.63837282]
[1762897908198,0.26973534,3413.8,3413.7,4.13457282]
[1762897908804,0.002,3413.9,3413.8,2.92928701]
[1762897908971,0.541488,3413.9,3413.8,3.91688701]
[1762897909177,0.002,3413.9,3413.8,3.91688701]
[1762897909993,0.002,3413.9,3413.8,18.41688701]
[1762897910195,0.002,3413.9,3413.8,21.02791699]
[1762897911504,0.002,3413.9,3413.8,14.5]
[1762897912201,0.002,3413.9,3413.3,0.405504]
[1762897912202,1.67047553,3413.9,3412.7,2.93023119]
[1762897912369,0.4933,3413.5,3413.2,2.92979641]
[1762897912573,0.4933,3413.5,3413.3,0.709]
[1762897912880,0.4933,3413.5,3413.4,2.92963028]
[1762897913079,0.1834,3413.9,3413.4,3.42583028]
[1762897913080,0.002,3413.9,3413.4,3.42583028]
[1762897913307,0.5388378,3413.8,3413.5,2.92947552]
[1762897913506,0.5388378,3413.7,3413.6,1.8427408]
[1762897914068,0.5388378,3413.7,3413.6,1.2052]
[1762897914314,0.5388378,3413.7,3413.6,4.13465863]
[1762897914676,0.2694189,3413.7,3413.6,4.62605863]
[1762897915003,0.002,3413.9,3413.8,3.33479101]
[1762897915304,0.002,3413.9,3413.8,3.83099101]
[1762897915472,0.002,3413.9,3413.8,4.32239101]
[1762897915669,0.002,3413.9,3413.8,18.82239101]
[1762897916108,0.002,3413.9,3413.8,22.62239101]
[1762897917599,0.4827,3413.9,3413.2,0.4735]
[1762897917802,0.002,3413.9,3413.6,2.92943406]
[1762897918004,0.002,3413.9,3413.8,3.40008701]
[1762897918185,0.002,3413.9,3413.8,19.03382781]
[1762897918507,0.002,3413.9,3413.8,19.92543181]
[1762897918906,0.002,3413.9,3413.8,26.78414956]
[1762897919912,0.002,3413.9,3413.8,29.86514956]
[1762897920109,0.002,3413.9,3413.8,32.75670189]
[1762897922094,1.1511,3413.9,3412.5,0.58124937]
[1762897922279,1.1511,3413.9,3413.2,0.708]
[1762897922280,0.0158,3413.7,3413.2,0.708]
[1762897922482,0.002,3413.9,3413.3,0.405504]
[1762897922717,0.002,3413.9,3413.1,0.6855]
[1762897922718,0.26889776,3413.8,3413.1,0.1994]
[1762897922890,0.26889776,3413.7,3413.4,3.63757771]
[1762897923097,0.53779552,3413.7,3413.5,3.8]
[1762897923304,0.75019776,3413.6,3413.5,3.8]
[1762897923620,1.21859776,3413.6,3413.5,3.8]
[1762897924385,0.73729776,3413.6,3413.5,3.8]
[1762897924585,1.98088706,3413.6,3413.5,3.8]
[1762897924813,1.49958706,3413.6,3413.5,3.8]
[1762897925129,0.1894,3413.9,3413.5,3.8]
[1762897925130,0.002,3413.9,3413.7,2.92928766]
[1762897925285,0.002,3413.9,3413.8,6.75857988]
[1762897925286,0.27102674,3413.9,3413.8,6.75857988]
[1762897925486,0.54008467,3413.9,3413.8,3.8]
[1762897925690,1.00848467,3413.9,3413.8,3.8]
[1762897926125,1.00848467,3413.9,3413.8,18.3]
[1762897926727,0.002,3413.9,3413.8,21.22928701]
[1762897926932,0.002,3413.9,3413.8,18.3]
[1762897927228,0.27117231,3413.9,3413.8,21.22928701]
[1762897927523,0.002,3413.9,3413.8,24.03070069]
[1762897927721,0.002,3413.9,3413.8,21.22928701]
[1762897927889,0.002,3413.9,3413.8,22.89518701]
[1762897928287,0.002,3413.9,3413.8,22.40908701]
[1762897928492,0.002,3413.9,3413.8,19.50069101]
[1762897929097,0.002,3413.9,3413.8,23.71543181]
[1762897929297,0.002,3413.9,3413.8,26.60698414]
[1762897930523,0.002,3414.4,3414.3,4.46810283]
[1762897930726,0.002,3414.4,3414.3,12.69492058]
[1762897931032,0.002,3414.4,3414.3,13.18102058]
[1762897931412,0.002,3414.4,3414.3,30.76202058]
[1762897931630,0.002,3414.4,3414.3,26.30875516]
[1762897931838,0.002,3414.4,3414.3,23.22775516]
[1762897932236,0.002,3414.4,3414.3,22.51975516]
[1762897932735,0.002,3414.4,3414.3,23.22775516]
[1762897933230,0.002,3414.4,3414.3,23.03945516]
[1762897933432,0.002,3414.4,3414.3,18.56259883]
[1762897933632,0.4704,3414.4,3414.3,14.5]
[1762897933834,1.0093331,3414.4,3414.3,0.708]
[1762897935003,1.9839331,3414.4,3414.3,0.708]
[1762897935202,1.4906331,3414.4,3414.3,0.708]
[1762897935420,0.4933,3414.3,3413.5,1.1337408]
[1762897935706,0.4933,3414.3,3414.1,3.33452051]
[1762897935707,0.5117,3414.3,3414.1,3.33452051]
[1762897935902,0.5117,3414.3,3414.2,15.207]
[1762897936107,1.0322927,3414.3,3414.2,15.207]
[1762897936454,1.5006927,3414.3,3414.2,15.207]
[1762897936656,1.0073927,3414.3,3414.2,19.007]
[1762897936809,0.5389927,3414.3,3414.2,22.40774382]
[1762897937165,0.002,3414.4,3414.3,3.33436203]
[1762897937322,0.002,3414.4,3414.3,4.29226203]
[1762897937755,0.002,3414.4,3414.3,5.42600283]
[1762897938050,0.002,3414.4,3414.3,8.31755516]
[1762897938267,0.002,3414.4,3414.3,5.42600283]
[1762897938467,0.002,3414.4,3414.3,19.92600283]
[1762897939430,0.002,3414.4,3414.3,18.96810283]
[1762897939760,1.9840594,3414.4,3414.3,1.8397408]
[1762897939955,1.7145297,3414.4,3414.3,1.8397408]
[1762897940158,1.2332297,3414.4,3414.3,1.8397408]
[1762897940470,0.73992638,3414.4,3414.3,4.76859883]
[1762897940769,0.002,3414.4,3414.3,6.52429187]
[1762897941357,0.002,3414.4,3414.3,1.93153384]
[1762897941556,0.002,3414.4,3414.3,5.17410283]
[1762897942472,0.002,3414.4,3414.3,8.97410283]
[1762897943170,0.002,3414.4,3414.3,5.64590283]
[1762897943473,0.002,3414.4,3414.3,6.13200283]
[1762897943765,0.002,3414.4,3414.3,5.64490283]
[1762897943971,0.002,3414.4,3414.3,6.56972795]
[1762897944933,0.002,3414.4,3414.3,21.06972795]
[1762897946076,0.002,3414.4,3414.3,20.36472795]
[1762897946378,0.002,3414.4,3414.3,21.06922795]
[1762897948242,0.002,3414.4,3414.3,24.86922795]
[1762897949944,0.002,3414.4,3414.3,10.36922795]
[1762897950366,0.002,3414.4,3414.3,24.86922795]
[1762897950964,0.002,3414.4,3414.3,29.89359879]
[1762897951473,0.002,3414.8,3414.7,3.081]
[1762897951773,0.002,3414.8,3414.7,18.77180143]
[1762897951976,0.002,3414.8,3414.7,14.24253059]
[1762897952180,0.002,3414.8,3414.7,14.78174343]
[1762897952650,0.002,3414.8,3414.7,15.37825209]
[1762897952982,0.002,3414.8,3414.7,20.10045784]
[1762897953851,0.002,3414.8,3414.7,19.561245]
[1762897954864,0.1874,3417.0,3416.2,3.33273308]
[1762897955073,0.4539,3417.6,3417.4,2.9262012]
[1762897955074,0.1991,3417.5,3417.4,2.9262012]
[1762897955250,1.66184936,3417.5,3417.4,0.705]
[1762897955451,2.15514936,3417.5,3416.9,0.405504]
[1762897955651,2.15514936,3417.5,3416.9,3.332076]
[1762897955652,0.0047,3417.0,3416.9,3.332076]
[1762897955852,0.4539,3417.4,3417.0,1.5392448]
[1762897956053,0.6924,3417.5,3417.0,1.5392448]
[1762897956054,0.6924,3417.5,3417.4,2.9262012]
[1762897956287,1.00882812,3417.5,3417.4,2.9262012]
[1762897956504,0.9243,3417.5,3417.4,2.9262012]
[1762897957079,0.4704,3417.5,3417.3,0.405504]
[1762897957279,0.4704,3417.5,3417.3,3.33178316]
[1762897957480,0.1991,3418.1,3417.3,3.33178316]
[1762897957481,0.0047,3417.4,3417.3,0.405504]
[1762897957722,0.0047,3417.4,3417.3,3.33179083]
[1762897958799,0.0047,3417.4,3417.3,0.405504]
[1762897959003,0.4586,3417.4,3417.3,0.405504]
[1762897959377,0.4586,3417.4,3417.3,3.33179083]
[1762897959578,0.0047,3417.4,3417.3,0.405504]
[1762897959781,0.99060796,3418.0,3417.5,2.92603486]
[1762897960015,0.26835398,3417.9,3417.6,0.704]
[1762897960216,0.4539,3418.0,3417.7,3.63087084]
[1762897960416,0.4539,3418.0,3417.8,3.63080455]
[1762897960794,0.4539,3418.0,3417.9,2.92577313]
[1762897961113,0.4933,3418.4,3417.9,17.42577313]
[1762897961294,1.0296798,3418.3,3417.9,17.42577313]
[1762897961495,0.2681899,3418.2,3417.9,17.42577313]
[1762897961694,0.9472,3418.3,3418.0,2.92568646]
[1762897961890,0.4539,3418.2,3418.1,0.704]
[1762897962117,1.21518752,3418.2,3418.1,0.704]
[1762897962280,0.9243,3418.2,3417.9,14.5]
[1762897962485,0.498,3418.0,3417.9,14.5]
[1762897963019,0.4704,3418.0,3417.9,14.5]
[1762897963191,0.4704,3418.0,3417.9,17.42574842]
[1762897963384,0.002,3418.6,3418.0,1.5392448]
[1762897963580,0.002,3418.6,3418.5,1.5392448]
[1762897963814,0.002,3418.6,3418.5,0.705]
[1762897963815,1.4196,3418.6,3418.5,0.705]
[1762897964115,1.4196,3418.6,3418.0,1.1337408]
[1762897964116,0.4933,3418.5,3418.4,0.705]
[1762897964312,1.4176,3418.5,3418.4,0.705]
[1762897964517,1.4176,3418.5,3418.2,0.705]
[1762897964694,0.002,3418.6,3418.0,1.1337408]
[1762897964695,0.4704,3418.2,3418.0,1.1337408]
[1762897964896,0.4933,3418.2,3418.1,0.705]
[1762897965291,0.976,3418.2,3418.1,0.705]
[1762897965521,1.418,3418.2,3418.1,0.705]
[1762897966316,0.9247,3418.2,3418.1,0.705]
[1762897966694,1.418,3418.2,3418.1,0.705]
[1762897967107,1.418,3418.2,3418.0,1.1337408]
[1762897967385,0.9243,3418.1,3417.9,0.705]
[1762897967618,0.0047,3418.0,3417.9,3.63077313]
[1762897968000,0.4933,3418.3,3418.0,1.1337408]
[1762897968308,0.9472,3418.5,3418.1,2.92559652]
[1762897968492,0.4933,3418.4,3418.1,2.92559652]
[1762897969512,0.9472,3418.5,3418.1,2.92559652]
[1762897969688,0.4539,3418.5,3417.9,0.705]
[1762897969893,0.9472,3418.5,3418.1,2.92555323]
[1762897970091,0.4933,3418.5,3418.2,0.703]
[1762897970296,0.002,3418.6,3418.3,2.92538074]
[1762897970697,0.26948797,3418.6,3418.4,2.92530718]
[1762897970923,0.26948797,3418.6,3418.5,3.39655961]
[1762897971216,0.002,3418.6,3418.5,3.62825961]
[1762897971611,0.002,3418.6,3418.5,4.09955961]
[1762897971832,0.002,3418.6,3418.5,4.50506361]
[1762897971987,0.002,3418.6,3418.5,6.99247281]
[1762897972192,0.002,3418.6,3418.5,7.41990461]
[1762897972391,0.002,3418.6,3418.5,7.26199096]
[1762897972944,0.002,3418.6,3418.5,6.99247281]
[1762897974110,0.002,3419.0,3418.6,0.4951]
[1762897974412,0.002,3420.0,3419.2,4.46390553]
[1762897974588,0.002,3420.0,3419.7,3.32973711]
[1762897974890,0.002,3420.0,3419.7,12.49280217]
[1762897975095,0.002,3420.0,3419.7,14.03451528]
[1762897975293,0.002,3420.0,3419.7,14.52961528]
[1762897976531,0.002,3421.1,3419.9,3.3295661]
[1762897976836,0.002,3421.1,3420.1,11.90066017]
[1762897977246,0.002,3421.1,3420.1,12.38806017]
[1762897977547,0.002,3421.1,3420.1,13.9895724]
[1762897977750,0.002,3421.1,3420.3,3.32922414]
[1762897977938,0.002,3421.1,3420.6,10.18399197]
[1762897978138,0.002,3421.1,3420.6,12.49783277]
[1762897978341,0.002,3421.1,3420.9,3.32871134]
[1762897978554,0.002,3421.1,3420.9,5.64255214]
[1762897978853,0.002,3421.1,3420.9,6.12725214]
[1762897979013,0.15283629,3421.6,3421.3,4.46211037]
[1762897979215,0.15283629,3421.6,3421.3,6.57312141]
[1762897979429,0.15283629,3421.6,3421.3,7.00055321]
[1762897979948,0.15283629,3421.6,3421.3,6.57312141]
[1762897980519,0.002,3422.7,3421.6,0.405504]
[1762897980829,0.74554449,3422.6,3421.5,1.1337408]
[1762897981012,0.74554449,3422.6,3421.3,0.44621104]
[1762897981013,0.26754449,3422.5,3421.7,3.32797009]
[1762897981215,0.26754449,3422.4,3421.8,0.405504]
[1762897981412,0.26754449,3422.3,3422.2,0.405504]
[1762897981643,0.26754449,3422.3,3422.2,4.03160089]
[1762897981835,0.002,3422.7,3422.6,4.05549619]
[1762897982036,0.002,3422.7,3422.6,1.8377408]
[1762897982037,0.26966652,3422.7,3422.6,1.8377408]
[1762897982354,0.73316652,3422.7,3422.6,5.16500019]
[1762897982552,0.26966652,3422.7,3422.6,5.16500019]
[1762897982786,0.002,3422.7,3422.6,12.59489413]
[1762897982951,0.002,3422.7,3422.6,14.11735145]
[1762897983156,0.002,3422.7,3422.6,14.60205145]
[1762897983677,1.21194386,3422.7,3422.6,1.1337408]
[1762897983838,1.21194386,3422.7,3421.5,3.11443002]
[1762897984023,0.4933,3422.5,3421.6,0.704]
[1762897984218,0.4933,3422.3,3421.6,4.76034143]
[1762897984420,0.26744386,3422.2,3421.6,2.23241887]
[1762897984670,0.26744386,3422.2,3421.6,0.704]
[1762897984671,0.26742483,3422.1,3421.6,0.704]
[1762897984972,0.4645,3421.7,3421.1,2.92303075]
[1762897985178,0.46,3421.2,3421.0,2.92305795]
[1762897985336,0.478,3421.6,3421.0,1.1337408]
[1762897985538,1.23858666,3421.5,3421.1,0.705]
[1762897985845,0.1913,3421.7,3421.3,4.05660637]
[1762897985846,0.26728666,3421.4,3421.3,4.05660637]
[1762897986045,0.26728666,3421.4,3421.1,0.705]
[1762897986245,0.4645,3421.2,3419.9,10.33325663]
[1762897986445,0.4933,3421.0,3420.2,0.705]
[1762897986645,0.26736968,3420.9,3420.3,2.92366075]
[1762897986852,0.76066968,3420.8,3420.3,2.92372014]
[1762897987018,0.74536968,3420.7,3420.3,1.1337408]
[1762897987219,0.74536968,3420.7,3419.8,1.1337408]
[1762897987220,0.4933,3420.3,3418.9,7.11637639]
[1762897987459,0.4933,3420.3,3419.7,2.924165]
[1762897987460,0.26742072,3420.2,3419.7,2.924165]
[1762897987620,0.26742072,3420.1,3419.8,1.8387408]
[1762897987824,0.26742072,3420.0,3419.8,1.8387408]
[1762897988024,0.7319019,3419.9,3419.8,0.705]
[1762897988247,1.7032019,3419.9,3419.8,0.705]
[1762897989524,1.7032019,3419.9,3417.7,3.80457332]
[1762897989525,0.49282208,3419.5,3418.3,0.1918]
[1762897989749,0.4933,3419.2,3418.4,0.705]
[1762897989952,0.4933,3418.9,3418.4,3.63033199]
[1762897990255,0.6558,3418.5,3418.4,0.705]
[1762897990458,0.9235261,3418.5,3418.4,3.63034519]
[1762897990637,0.478,3419.7,3418.5,1.5392448]
[1762897990955,1.02871694,3419.6,3419.1,2.92468785]
[1762897991166,0.26771176,3419.5,3419.2,2.92465579]
[1762897991324,0.26780239,3419.4,3419.2,2.92465579]
[1762897991520,0.73230239,3419.3,3419.2,2.92465579]
[1762897991724,0.26780239,3419.3,3419.2,5.11944907]
[1762897991924,0.26780239,3419.3,3419.2,5.59554907]
[1762897992160,0.1913,3420.3,3419.5,1.1337408]
[1762897992332,0.26799717,3420.2,3420.1,2.92389111]
[1762897992534,0.26799717,3420.2,3420.1,5.16913591]
[1762897992748,0.478,3420.8,3420.6,4.05720451]
[1762897992945,0.1913,3420.9,3420.8,2.92329279]
[1762897993256,0.4933,3421.4,3420.9,1.5392448]
[1762897993467,0.26809924,3421.3,3421.2,2.92288054]
[1762897993629,0.26809924,3421.3,3421.2,3.6289468]
[1762897993954,0.9425,3421.3,3421.2,3.62895101]
[1762897994153,0.73259924,3421.3,3421.2,2.92295101]
[1762897994358,0.002,3421.6,3421.5,2.92269472]
[1762897994587,0.002,3421.6,3421.5,6.12973952]
[1762897994933,0.002,3421.6,3421.5,6.88305767]
[1762897995131,0.002,3421.6,3421.5,5.42273952]
[1762897995345,0.002,3421.6,3421.5,6.12973952]
[1762897995560,0.002,3421.6,3421.5,8.08226078]
[1762897996143,1e-08,3422.0,3421.9,3.72105707]
[1762897996345,1e-08,3422.0,3421.9,12.48637426]
[1762897996547,1e-08,3422.7,3422.6,1.073404]
[1762897996735,1e-08,3422.7,3422.6,13.24517658]
[1762897997363,1e-08,3422.7,3422.6,13.67260838]
[1762897997752,0.002,3423.1,3423.0,3.32691796]
[1762897998040,0.478,3424.3,3423.3,4.46040274]
[1762897998354,0.478,3424.3,3423.3,5.64350274]
[1762897998555,0.478,3424.3,3423.3,6.12820274]
[1762897998946,0.1913,3423.9,3423.3,5.64450274]
[1762897999736,0.478,3424.3,3423.3,5.64450274]
[1762897999737,0.478,3424.3,3423.3,6.12920274]
[1762897999938,0.26787806,3424.2,3423.3,7.3340089]
[1762898000140,0.6693,3424.7,3423.3,7.3340089]
[1762898000341,0.26778013,3424.6,3423.3,7.8187089]
[1762898000568,0.26778013,3424.5,3423.3,7.8187089]
[1762898000776,0.26795037,3424.4,3423.3,7.8187089]
[1762898001075,0.6693,3424.7,3423.3,7.3340089]
[1762898001076,0.478,3424.3,3423.3,7.3340089]
[1762898002211,0.1913,3424.7,3423.3,7.3340089]
[1762898002212,0.1913,3425.1,3423.5,1.1337408]
[1762898002390,0.1913,3425.1,3425.0,1.5392448]
[1762898002704,0.6846,3426.0,3425.7,0.405504]
[1762898002906,0.2680515,3425.9,3425.8,0.707]
[1762898003216,0.2680515,3425.9,3425.8,3.62602621]
[1762898003569,0.2680515,3425.9,3425.8,1.112504]
[1762898003808,0.4593515,3425.9,3425.8,2.2462448]
[1762898004109,1.4018515,3425.9,3425.8,16.7482448]
[1762898004308,1.8951515,3425.9,3425.8,16.3427408]
[1762898004497,1.4018515,3425.9,3425.8,16.3427408]
[1762898004670,1.8951515,3425.9,3425.8,16.3427408]
[1762898005168,0.2680515,3425.9,3425.8,18.8548416]
[1762898005372,0.2680515,3425.9,3425.8,21.77386781]
[1762898005668,0.1913,3426.8,3426.6,0.405504]
[1762898005888,0.6846,3426.8,3426.7,0.708]
[1762898006104,0.95222368,3426.8,3426.7,0.708]
[1762898006302,0.95222368,3426.8,3425.8,14.5]
[1762898006303,0.4933,3426.4,3425.8,14.5]
[1762898006477,0.4933,3426.0,3425.9,1.8427408]
[1762898006679,0.4933,3426.0,3424.5,9.84468428]
[1762898006680,0.76282368,3426.0,3425.6,0.709]
[1762898006880,0.93222368,3425.9,3424.2,2.92039016]
[1762898007084,0.26762368,3425.8,3424.9,17.41979047]
[1762898007283,0.4933,3425.6,3425.0,0.709]
[1762898007483,0.4798,3425.8,3425.0,0.709]
[1762898007484,0.4933,3425.1,3425.0,0.709]
[1762898007672,1.25612368,3425.1,3425.0,0.709]
[1762898008002,1.72302368,3425.1,3425.0,0.709]
[1762898008505,0.4933,3424.7,3424.3,3.62924009]
[1762898008680,0.26762368,3424.6,3424.3,0.709]
[1762898008869,0.26762368,3424.6,3424.4,17.42015541]
[1762898008870,0.26762368,3424.5,3424.4,17.42015541]
[1762898009070,0.26762368,3424.5,3424.4,17.4202196]
[1762898009275,0.26762368,3424.5,3424.4,18.9594644]
[1762898009471,1.23622368,3424.5,3424.4,14.5]